bitfinex-derivatives/quotes_BTCF0:USTF0_20250527
["timestamp","ask_amount","ask_price","bid_price","bid_amount"]
[1748372802743,1.83442353,109800.0,109790.0,0.39368855]
[1748372803136,1.83442353,109800.0,109790.0,0.34055135]
[1748372804341,1.83442353,109800.0,109790.0,0.39368855]
[1748372804739,1.83442353,109800.0,109790.0,0.34055135]
[1748372805547,1.83442353,109800.0,109790.0,0.39368855]
[1748372805746,1.83442353,109800.0,109790.0,0.34055135]
[1748372808448,1.5771681,109800.0,109790.0,0.34055135]
[1748372808642,1.83286353,109800.0,109790.0,0.34055135]
[1748372810853,1.5771681,109800.0,109790.0,0.34055135]
[1748372811049,1.83286353,109800.0,109790.0,0.34055135]
[1748372811441,1.83286353,109800.0,109790.0,0.34054488]
[1748372812249,2.19366353,109800.0,109790.0,0.34054488]
[1748372813554,2.19366353,109800.0,109790.0,0.30065263]
[1748372814053,2.1873475,109800.0,109790.0,0.30065263]
[1748372814536,2.1873475,109800.0,109790.0,0.35378983]
[1748372814735,1.5051281,109800.0,109790.0,0.35378983]
[1748372814940,2.1863075,109800.0,109790.0,0.35378983]
[1748372818351,2.1863075,109800.0,109790.0,0.39824274]
[1748372818656,2.1863075,109800.0,109790.0,0.41150469]
[1748372821359,1.9369281,109800.0,109790.0,0.41150469]
[1748372821549,1.7545075,109800.0,109790.0,0.41150469]
[1748372821749,1.3230617,109800.0,109790.0,0.41150469]
[1748372821950,1.32774,109800.0,109790.0,0.79293118]
[1748372822156,1.5098065,109800.0,109790.0,0.58808229]
[1748372822655,0.8967,109800.0,109790.0,0.58808229]
[1748372822851,1.5096465,109800.0,109790.0,0.58808229]
[1748372823048,0.8362,109800.0,109790.0,0.58808229]
[1748372823252,1.26704,109800.0,109790.0,0.58808229]
[1748372824256,1.4491065,109800.0,109790.0,0.58808229]
[1748372824867,0.8362,109800.0,109790.0,0.58808229]
[1748372825066,1.26672,109800.0,109790.0,0.58808229]
[1748372825257,0.7216,109800.0,109790.0,0.92309216]
[1748372825562,0.7216,109800.0,109790.0,1.30076284]
[1748372825563,0.3608,109800.0,109790.0,1.30076284]
[1748372826560,0.00013626,109810.0,109800.0,0.1820664]
[1748372826767,0.00013626,109810.0,109800.0,1.22402372]
[1748372826965,0.00013626,109810.0,109800.0,1.06571632]
[1748372827158,0.00013626,109810.0,109800.0,1.31509572]
[1748372827666,0.00013626,109810.0,109800.0,1.31809572]
[1748372827864,0.06183626,109810.0,109800.0,1.31809572]
[1748372828068,0.06183626,109810.0,109800.0,1.32109572]
[1748372828272,0.06183626,109810.0,109800.0,1.42505572]
[1748372828465,0.06183626,109810.0,109800.0,1.42495978]
[1748372828671,0.06183626,109810.0,109800.0,1.42507978]
[1748372828972,0.06183626,109810.0,109800.0,0.89059978]
[1748372828973,0.24388616,109810.0,109800.0,0.89059978]
[1748372829270,0.12293626,109810.0,109800.0,1.42531978]
[1748372829469,0.12293626,109810.0,109800.0,0.89059978]
[1748372829669,0.30498616,109810.0,109800.0,1.42519978]
[1748372829967,0.12293626,109810.0,109800.0,1.42519978]
[1748372830462,0.30498616,109810.0,109800.0,1.46519978]
[1748372830667,0.30498616,109810.0,109800.0,1.37412778]
[1748372830966,0.30498616,109810.0,109800.0,1.37312778]
[1748372831267,0.12293626,109810.0,109800.0,0.83852778]
[1748372831570,0.12293626,109810.0,109800.0,1.37184778]
[1748372832274,0.00013626,109810.0,109800.0,1.37184778]
[1748372832568,0.00013626,109810.0,109800.0,1.69264778]
[1748372832762,0.00013626,109810.0,109800.0,1.9725928]
[1748372832961,0.00013626,109810.0,109800.0,1.4382728]
[1748372833161,0.00013626,109810.0,109800.0,1.9728328]
[1748372833352,0.00013626,109810.0,109800.0,1.4382728]
[1748372833552,0.00013626,109810.0,109800.0,1.9728328]
[1748372834679,6e-08,109810.0,109800.0,2.29718267]
[1748372834864,6e-08,109810.0,109800.0,2.49398609]
[1748372835177,6e-08,109810.0,109800.0,1.99522729]
[1748372835577,6e-08,109810.0,109800.0,2.49398609]
[1748372837087,6e-08,109810.0,109800.0,2.4939228]
[1748372838170,6e-08,109810.0,109800.0,2.2445434]
[1748372838569,6e-08,109810.0,109800.0,2.4939228]
[1748372839661,6e-08,109810.0,109800.0,2.49389907]
[1748372839975,6e-08,109810.0,109800.0,2.24451967]
[1748372840870,6e-08,109810.0,109800.0,1.81403967]
[1748372840871,0.06800006,109810.0,109800.0,1.81403967]
[1748372841179,0.12920006,109810.0,109800.0,2.11538344]
[1748372841568,0.12920006,109810.0,109800.0,2.02227361]
[1748372841771,0.12920006,109810.0,109800.0,2.02239361]
[1748372842775,0.12920006,109810.0,109800.0,1.97190961]
[1748372844964,0.12920006,109810.0,109800.0,1.43798961]
[1748372845172,0.12920006,109810.0,109800.0,1.97138961]
[1748372845477,0.12920006,109810.0,109800.0,1.97134961]
[1748372845775,0.12920006,109810.0,109800.0,1.97132453]
[1748372845971,0.12920006,109810.0,109800.0,1.43804453]
[1748372846274,0.12920006,109810.0,109800.0,1.97128453]
[1748372847277,0.19350006,109810.0,109800.0,1.97120453]
[1748372847473,0.19350006,109810.0,109800.0,2.02176606]
[1748372847677,0.19350006,109810.0,109800.0,1.9553767]
[1748372848369,0.19350006,109810.0,109800.0,2.02181403]
[1748372848573,0.19350006,109810.0,109800.0,1.9553767]
[1748372848779,0.19350006,109810.0,109800.0,2.04836653]
[1748372850376,0.19350006,109810.0,109800.0,1.99784026]
[1748372850779,0.19350006,109810.0,109800.0,1.90485043]
[1748372850972,0.19350006,109810.0,109800.0,1.95545343]
[1748372851173,0.19350006,109810.0,109800.0,2.04844326]
[1748372851877,0.19350006,109810.0,109800.0,2.15225685]
[1748372853080,0.19350006,109810.0,109800.0,2.40163625]
[1748372853274,0.3608,109830.0,109820.0,0.4314127]
[1748372853471,0.4171617,109830.0,109820.0,0.7186779]
[1748372853674,0.4171617,109830.0,109820.0,0.8476779]
[1748372854178,0.3608,109830.0,109820.0,1.28058603]
[1748372854371,0.4181617,109830.0,109820.0,1.48736083]
[1748372854574,0.4191617,109830.0,109820.0,1.55389913]
[1748372854879,0.0583617,109830.0,109820.0,1.9592068]
[1748372855581,0.001,109830.0,109820.0,2.04708509]
[1748372855877,0.36093626,109840.0,109830.0,0.1820167]
[1748372856079,0.41729796,109840.0,109830.0,0.9202857]
[1748372856285,0.48169796,109840.0,109830.0,0.9202857]
[1748372857171,0.48269796,109840.0,109830.0,0.9202857]
[1748372857372,0.48269796,109840.0,109830.0,0.82517503]
[1748372857784,0.48269796,109840.0,109830.0,0.7585961]
[1748372858282,0.61279796,109840.0,109830.0,0.7585961]
[1748372858681,0.61279796,109840.0,109830.0,0.7719513]
[1748372859091,0.25199796,109840.0,109830.0,0.7719513]
[1748372859274,0.61279796,109840.0,109830.0,0.7719513]
[1748372861973,0.06653626,109840.0,109830.0,0.7719513]
[1748372862191,0.00213626,109840.0,109830.0,1.6137833]
[1748372862385,0.00213626,109840.0,109830.0,1.6401942]
[1748372862984,0.06533626,109840.0,109830.0,1.64017319]
[1748372863193,0.06433626,109840.0,109830.0,1.64017319]
[1748372863382,0.06433626,109840.0,109830.0,1.64217319]
[1748372863585,0.06333626,109840.0,109830.0,1.64417319]
[1748372863781,0.06333626,109840.0,109830.0,1.64217319]
[1748372863987,0.06333626,109840.0,109830.0,2.17549319]
[1748372864386,0.06333626,109840.0,109830.0,2.17649319]
[1748372865380,0.06333626,109840.0,109830.0,1.92711379]
[1748372865690,0.06333626,109840.0,109830.0,2.17649319]
[1748372866494,0.06333626,109840.0,109830.0,1.92711379]
[1748372866705,0.06333626,109840.0,109830.0,2.17649319]
[1748372867385,0.06333626,109840.0,109830.0,2.08350336]
[1748372868092,0.06333626,109840.0,109830.0,2.17649319]
[1748372869084,0.06333626,109840.0,109830.0,2.3308462]
[1748372869284,0.00013626,109840.0,109830.0,2.3308462]
[1748372870190,0.06553626,109840.0,109830.0,2.3308462]
[1748372870789,0.06553626,109840.0,109830.0,2.22703261]
[1748372871595,0.06553626,109840.0,109830.0,2.22695316]
[1748372873084,0.06553626,109840.0,109830.0,2.3428223]
[1748372873389,0.06553626,109840.0,109830.0,2.44685788]
[1748372873583,0.06553626,109840.0,109830.0,2.33098874]
[1748372874497,0.06553626,109840.0,109830.0,2.33026874]
[1748372875487,0.12853626,109840.0,109830.0,2.33026874]
[1748372875989,0.12853626,109840.0,109830.0,2.33026278]
[1748372876193,0.12853626,109840.0,109830.0,1.39672779]
[1748372876384,0.54569796,109840.0,109830.0,1.76977074]
[1748372876697,0.61219796,109840.0,109830.0,1.2403913]
[1748372876995,0.61219796,109840.0,109830.0,1.3602713]
[1748372877201,0.61219796,109840.0,109830.0,1.3603913]
[1748372877403,0.61219796,109840.0,109830.0,1.1110119]
[1748372877696,0.61219796,109840.0,109830.0,1.3603913]
[1748372878498,0.61219796,109840.0,109830.0,1.2403913]
[1748372879001,0.61219796,109840.0,109830.0,1.39678091]
[1748372879388,0.61219796,109840.0,109830.0,1.3303913]
[1748372879591,0.61219796,109840.0,109830.0,1.39678091]
[1748372880185,0.61219796,109840.0,109830.0,1.44118492]
[1748372880491,0.61219796,109840.0,109830.0,1.35118492]
[1748372880697,0.61219796,109840.0,109830.0,1.28398492]
[1748372880889,0.61219796,109840.0,109830.0,0.55923149]
[1748372881085,0.61219796,109840.0,109830.0,0.72972586]
[1748372881290,0.61219796,109840.0,109830.0,0.72960586]
[1748372882109,0.61219796,109840.0,109830.0,0.72972586]
[1748372882301,0.61219796,109840.0,109830.0,0.97310526]
[1748372883104,0.61219796,109840.0,109830.0,0.8184941]
[1748372883398,0.61219796,109840.0,109830.0,1.0284941]
[1748372884593,0.61219796,109840.0,109830.0,0.8464774]
[1748372884793,0.61219796,109840.0,109830.0,1.0284941]
[1748372885296,0.61219796,109840.0,109830.0,0.98409009]
[1748372885697,0.61219796,109840.0,109830.0,1.0285568]
[1748372886002,0.61219796,109840.0,109830.0,1.0940568]
[1748372886502,0.61219796,109840.0,109830.0,1.04959009]
[1748372887900,0.61219796,109840.0,109830.0,0.86771069]
[1748372888100,0.61219796,109840.0,109830.0,1.11709009]
[1748372889691,0.61219796,109840.0,109830.0,1.04959009]
[1748372890405,0.61219796,109840.0,109830.0,1.09406122]
[1748372891403,0.61219796,109840.0,109830.0,0.99130122]
[1748372891601,0.61219796,109840.0,109830.0,1.09310122]
[1748372892301,0.79419816,109840.0,109830.0,0.67642182]
[1748372892502,1.12419816,109840.0,109830.0,0.64133009]
[1748372892905,0.94219796,109840.0,109830.0,0.64121009]
[1748372893101,0.94219796,109840.0,109830.0,0.64133009]
[1748372893718,0.58139796,109840.0,109830.0,0.64133009]
[1748372894008,0.25139796,109840.0,109830.0,1.07290132]
[1748372894195,0.12189796,109840.0,109830.0,1.43370132]
[1748372895003,0.4228,109860.0,109850.0,0.1819836]
[1748372895198,0.5422617,109860.0,109850.0,0.99904308]
[1748372895399,0.5422617,109860.0,109850.0,1.14545209]
[1748372895604,0.5422617,109860.0,109850.0,1.20705209]
[1748372895905,0.5422617,109860.0,109850.0,1.14053423]
[1748372896108,0.5432617,109860.0,109850.0,1.14053423]
[1748372896411,0.5432617,109860.0,109850.0,1.14253423]
[1748372897010,0.7252288,109860.0,109850.0,0.44005483]
[1748372897912,0.7242288,109860.0,109850.0,0.44205483]
[1748372898101,0.7910288,109860.0,109850.0,0.44217483]
[1748372898713,0.7910288,109860.0,109850.0,0.43817483]
[1748372899399,0.7910288,109860.0,109850.0,0.52340419]
[1748372899807,0.7910288,109860.0,109850.0,0.44688605]
[1748372901719,0.7910288,109860.0,109850.0,0.51340391]
[1748372902019,0.7910288,109860.0,109850.0,0.51339045]
[1748372902913,0.7910288,109860.0,109850.0,0.54339045]
[1748372903213,0.7910288,109860.0,109850.0,0.51339045]
[1748372903916,0.7910288,109860.0,109850.0,0.54339045]
[1748372904121,0.7910288,109860.0,109850.0,0.52339045]
[1748372904926,0.7910288,109860.0,109850.0,0.57401811]
[1748372905313,0.7910288,109860.0,109850.0,0.56401811]
[1748372905817,0.7910288,109860.0,109850.0,0.64401811]
[1748372906119,0.7910288,109860.0,109850.0,0.59339513]
[1748372906318,0.7910288,109860.0,109850.0,0.64402395]
[1748372906618,0.7910288,109860.0,109850.0,0.70942395]
[1748372907120,0.7910288,109860.0,109850.0,0.65879513]
[1748372908925,0.7910288,109860.0,109850.0,0.72969513]
[1748372910515,0.7910288,109860.0,109850.0,0.72968911]
[1748372910817,0.7910288,109860.0,109850.0,0.68968911]
[1748372911012,0.7910288,109860.0,109850.0,0.64968911]
[1748372911821,0.7910288,109860.0,109850.0,0.67968911]
[1748372914223,0.7910288,109860.0,109850.0,0.89968911]
[1748372914426,0.7910288,109860.0,109850.0,0.64968911]
[1748372914724,1.2164288,109860.0,109850.0,0.69968911]
[1748372914918,1.2164288,109860.0,109850.0,0.68097711]
[1748372915111,1.2164288,109860.0,109850.0,0.69969397]
[1748372915910,1.2164288,109860.0,109850.0,0.86969397]
[1748372916624,1.2164288,109860.0,109850.0,1.11878909]
[1748372917408,1.2164288,109860.0,109850.0,0.86969397]
[1748372919327,1.2164288,109860.0,109850.0,0.86971013]
[1748372921730,1.2164288,109860.0,109850.0,1.0244048]
[1748372921930,1.2164288,109860.0,109850.0,1.21120929]
[1748372922830,1.2164288,109860.0,109850.0,1.10717371]
[1748372922831,0.6090617,109860.0,109850.0,1.10717371]
[1748372923031,1.0344617,109860.0,109850.0,1.10717371]
[1748372923228,1.2164288,109860.0,109850.0,1.10717371]
[1748372923619,1.2164288,109860.0,109850.0,1.10718313]
[1748372923827,1.0344617,109860.0,109850.0,1.10718313]
[1748372924028,1.2164287,109860.0,109850.0,1.10718313]
[1748372924233,1.2164287,109860.0,109850.0,1.21121871]
[1748372924427,1.2164287,109860.0,109850.0,1.10718313]
[1748372925825,1.2164287,109860.0,109850.0,0.92037864]
[1748372926025,0.6090617,109860.0,109850.0,1.10718313]
[1748372926226,1.0344217,109860.0,109850.0,1.10718313]
[1748372926535,1.0344217,109860.0,109850.0,1.21121871]
[1748372927332,1.0344217,109860.0,109850.0,1.14470085]
[1748372927520,1.0344217,109860.0,109850.0,1.21123952]
[1748372927924,0.9093217,109860.0,109850.0,1.1925164]
[1748372928126,0.9093217,109860.0,109850.0,1.1071892]
[1748372928537,0.9093217,109860.0,109850.0,1.21122478]
[1748372929829,0.4839617,109860.0,109850.0,1.21122478]
[1748372930222,0.4839617,109860.0,109850.0,1.23767595]
[1748372930637,0.07993626,109870.0,109860.0,0.1819671]
[1748372930836,0.92245796,109870.0,109860.0,1.06743069]
[1748372931039,1.06495796,109870.0,109860.0,0.93133106]
[1748372931226,1.06495796,109870.0,109860.0,0.93130124]
[1748372931426,1.24690846,109870.0,109860.0,0.93130124]
[1748372931635,1.43371295,109870.0,109860.0,0.82726566]
[1748372931842,1.50471295,109870.0,109860.0,0.51985631]
[1748372932030,1.43571295,109870.0,109860.0,0.51985631]
[1748372932339,1.74571295,109870.0,109860.0,0.5200093]
[1748372932842,1.74571295,109870.0,109860.0,0.45334272]
[1748372933027,1.74571295,109870.0,109860.0,0.50647135]
[1748372936340,1.54571295,109870.0,109860.0,0.50647135]
[1748372936537,1.54571295,109870.0,109860.0,0.48792369]
[1748372936744,1.35890846,109870.0,109860.0,0.6932753]
[1748372937044,1.54571295,109870.0,109860.0,0.6932753]
[1748372938934,1.54571295,109870.0,109860.0,0.50647081]
[1748372939539,1.54571295,109870.0,109860.0,0.6932753]
[1748372940429,1.78571295,109870.0,109860.0,0.50647081]
[1748372941036,1.78571295,109870.0,109860.0,0.50647103]
[1748372941636,1.78571295,109870.0,109860.0,0.42827103]
[1748372941837,1.78571295,109870.0,109860.0,0.49925103]
[1748372942038,1.78571295,109870.0,109860.0,0.49937103]
[1748372943449,1.78571295,109870.0,109860.0,0.2463075]
[1748372943450,2.06353744,109870.0,109860.0,0.2463075]
[1748372943637,2.44398023,109870.0,109850.0,0.05755094]
[1748372943838,1.28805637,109860.0,109850.0,0.04426636]
[1748372944044,1.70245637,109860.0,109850.0,0.04438636]
[1748372944240,1.85667988,109860.0,109850.0,0.06293239]
[1748372944743,1.85667988,109860.0,109850.0,0.04299387]
[1748372945339,1.85667988,109860.0,109850.0,0.02002553]
[1748372945931,1.73228064,109860.0,109850.0,0.02002553]
[1748372946248,2.14842494,109860.0,109850.0,0.00888983]
[1748372946653,2.14842494,109860.0,109850.0,0.00900983]
[1748372947039,2.14842494,109860.0,109850.0,0.01000983]
[1748372947649,2.14842494,109860.0,109850.0,0.00012]
[1748372947948,2.15042494,109860.0,109850.0,0.00012]
[1748372949350,1.90042494,109860.0,109850.0,0.00012]
[1748372949659,0.1819838,109850.0,109840.0,0.00013626]
[1748372949946,1.37509354,109850.0,109840.0,0.00013626]
[1748372950248,1.46612954,109850.0,109840.0,0.00025626]
[1748372950946,1.46712954,109850.0,109840.0,0.00025626]
[1748372951841,1.46812954,109850.0,109840.0,0.00025626]
[1748372955252,1.89344954,109850.0,109840.0,0.00025626]
[1748372955648,1.99484954,109850.0,109840.0,0.18225666]
[1748372955852,1.99484954,109850.0,109840.0,0.25645666]
[1748372958834,1.99484954,109850.0,109840.0,0.26645666]
[1748372959653,1.99484954,109850.0,109840.0,0.27087897]
[1748372960344,1.99484954,109850.0,109840.0,0.01467857]
[1748372960943,1.99484954,109850.0,109840.0,0.01455857]
[1748372961146,1.99484954,109850.0,109840.0,0.01467857]
[1748372962847,1.99484954,109850.0,109840.0,0.08867857]
[1748372963746,1.99484954,109850.0,109840.0,0.07867857]
[1748372968137,1.99476954,109850.0,109840.0,0.07867857]
[1748372969956,1.99476954,109850.0,109840.0,0.08867857]
[1748372970163,1.7455598,109850.0,109840.0,0.08867857]
[1748372970455,1.99476954,109850.0,109840.0,0.08867857]
[1748372971960,1.7455598,109850.0,109840.0,0.08867857]
[1748372972258,1.99476954,109850.0,109840.0,0.16367857]
[1748372972459,1.99476954,109850.0,109840.0,0.23977857]
[1748372973652,1.99476954,109850.0,109840.0,0.27962262]
[1748372973854,1.99476954,109850.0,109840.0,0.30618565]
[1748372974465,1.99476954,109850.0,109840.0,0.48818595]
[1748372974466,1.5040238,109850.0,109840.0,0.48818595]
[1748372974654,1.75323354,109850.0,109840.0,0.46162292]
[1748372975553,1.5040238,109850.0,109840.0,0.46162292]
[1748372975752,1.4314238,109850.0,109840.0,0.46162292]
[1748372976063,1.68063354,109850.0,109840.0,0.46162292]
[1748372976768,1.68063354,109850.0,109840.0,0.50614814]
[1748372977264,1.68063354,109850.0,109840.0,0.46162292]
[1748372977463,1.68051354,109850.0,109840.0,0.46162292]
[1748372977854,1.4313038,109850.0,109840.0,0.46162292]
[1748372978160,1.68051354,109850.0,109840.0,0.46162292]
[1748372980458,1.4313038,109850.0,109840.0,0.46162292]
[1748372980660,1.68051354,109850.0,109840.0,0.30678893]
[1748372980856,1.75381354,109850.0,109840.0,0.43678893]
[1748372982369,1.82741354,109850.0,109840.0,0.43678893]
[1748372982568,1.5782038,109850.0,109840.0,0.43678893]
[1748372982773,1.0516838,109850.0,109840.0,0.43678893]
[1748372983066,1.1530038,109850.0,109840.0,0.43678893]
[1748372983270,1.5781638,109850.0,109840.0,0.43678893]
[1748372983466,1.5045638,109850.0,109840.0,0.43678893]
[1748372983860,1.5045638,109850.0,109840.0,0.51088893]
[1748372984463,1.5783638,109850.0,109840.0,0.51088893]
[1748372985465,1.82757354,109850.0,109840.0,0.51088893]
[1748372990084,1.82757354,109850.0,109840.0,0.55540544]
[1748372993181,1.6525638,109850.0,109840.0,0.55540544]
[1748372993393,1.90177354,109850.0,109840.0,0.55540544]
[1748372994180,1.90177354,109850.0,109840.0,0.60853368]
[1748372994381,1.90177354,109850.0,109840.0,0.51088893]
[1748372997990,1.83942755,109850.0,109840.0,0.51088893]
[1748373000378,1.83942755,109850.0,109840.0,0.16984405]
[1748373000579,2.0262913,109850.0,109840.0,0.03984405]
[1748373000785,2.0262913,109850.0,109840.0,0.03996405]
[1748373000990,2.0262913,109850.0,109840.0,0.06653398]
[1748373002487,2.0262913,109850.0,109840.0,0.08490648]
[1748373003988,1.90177185,109850.0,109840.0,0.08490648]
[1748373005789,1.90177185,109850.0,109840.0,0.06653398]
[1748373005991,1.90177185,109850.0,109840.0,0.08489559]
[1748373007297,1.90177185,109850.0,109840.0,0.12942209]
[1748373007992,1.90177185,109850.0,109840.0,0.13942209]
[1748373008189,1.90177185,109850.0,109840.0,0.09489475]
[1748373008990,1.90177185,109850.0,109840.0,0.08489475]
[1748373010999,1.90177185,109850.0,109840.0,0.09489475]
[1748373011799,1.90177185,109850.0,109840.0,0.09489179]
[1748373012997,1.47661185,109850.0,109840.0,0.09489179]
[1748373013196,1.90161185,109850.0,109840.0,0.09489179]
[1748373013796,1.90161185,109850.0,109840.0,0.04504774]
[1748373013999,1.6524038,109850.0,109840.0,0.04492774]
[1748373014304,1.90161185,109850.0,109840.0,0.06495787]
[1748373014500,1.90161185,109850.0,109840.0,0.06483787]
[1748373014706,1.90161185,109850.0,109840.0,0.06495787]
[1748373015095,1.90161185,109850.0,109840.0,0.03731467]
[1748373015408,0.5428003,109840.0,109830.0,0.00013626]
[1748373015708,0.1820169,109830.0,109820.0,0.03984405]
[1748373016000,1.86752495,109830.0,109820.0,0.03984405]
[1748373016395,1.86752495,109830.0,109820.0,0.03996405]
[1748373017306,1.86752495,109830.0,109820.0,0.04196405]
[1748373017505,1.86752495,109830.0,109820.0,0.00212]
[1748373017806,1.86752495,109830.0,109820.0,0.00012]
[1748373018792,1.86752495,109830.0,109820.0,0.07532]
[1748373018999,1.87270354,109830.0,109820.0,0.07532]
[1748373019411,2.23350354,109830.0,109820.0,0.07332]
[1748373019701,2.23350354,109830.0,109820.0,0.07432]
[1748373022807,2.23350354,109830.0,109820.0,0.2563534]
[1748373023008,2.23350354,109830.0,109820.0,0.07432]
[1748373024510,2.23350354,109830.0,109820.0,0.2563535]
[1748373024712,2.23350354,109830.0,109820.0,0.07432]
[1748373025210,1.98429549,109830.0,109820.0,0.2563535]
[1748373025718,2.23350354,109830.0,109820.0,0.14532]
[1748373025900,2.17122482,109830.0,109820.0,0.14532]
[1748373027508,2.17322482,109830.0,109820.0,0.14532]
[1748373028114,2.17322482,109830.0,109820.0,0.15532]
[1748373028308,2.17322482,109830.0,109820.0,0.15432]
[1748373028514,2.17522482,109830.0,109820.0,0.15432]
[1748373032313,1.98821549,109830.0,109820.0,0.3363534]
[1748373032611,2.17514482,109830.0,109820.0,0.3363534]
[1748373033115,2.17514482,109830.0,109820.0,0.15432]
[1748373035313,2.17514482,109830.0,109820.0,0.19879335]
[1748373035513,2.17514482,109830.0,109820.0,0.2386374]
[1748373035716,2.17514482,109830.0,109810.0,0.11124405]
[1748373035923,0.88246283,109820.0,109810.0,0.27714405]
[1748373036111,1.24246283,109820.0,109810.0,0.27726405]
[1748373037211,1.42939216,109820.0,109810.0,0.16602]
[1748373037410,1.42939216,109820.0,109810.0,0.1659]
[1748373037619,1.43039216,109820.0,109810.0,0.09012]
[1748373037822,0.1820497,109810.0,109800.0,0.19054405]
[1748373038026,1.84143903,109810.0,109800.0,0.19054405]
[1748373038221,1.84143903,109810.0,109800.0,0.26244405]
[1748373038922,1.84143903,109810.0,109800.0,0.26344405]
[1748373041018,1.84143903,109810.0,109800.0,0.27344405]
[1748373041520,1.84143903,109810.0,109800.0,0.27244405]
[1748373041723,1.84343903,109810.0,109800.0,0.27244405]
[1748373041924,1.6565097,109810.0,109800.0,0.27244405]
[1748373042225,1.84343903,109810.0,109800.0,0.27244405]
[1748373042525,1.84543903,109810.0,109800.0,0.27244405]
[1748373044224,1.84543903,109810.0,109800.0,0.31694604]
[1748373046122,1.42039903,109810.0,109800.0,0.68594738]
[1748373046420,1.84527903,109810.0,109800.0,0.49901805]
[1748373047315,1.84427903,109810.0,109800.0,0.49901805]
[1748373048528,1.84227903,109810.0,109800.0,0.49901805]
[1748373048711,1.84327903,109810.0,109800.0,0.49901805]
[1748373049614,1.84327903,109810.0,109800.0,0.31695185]
[1748373050816,1.84327903,109810.0,109800.0,0.49901805]
[1748373051328,1.84327903,109810.0,109800.0,0.31695185]
[1748373051528,1.84327903,109810.0,109800.0,0.55214668]
[1748373052127,1.84327903,109810.0,109800.0,0.49901805]
[1748373053027,1.84327903,109810.0,109800.0,0.27244405]
[1748373053626,1.6563497,109810.0,109800.0,0.27244405]
[1748373053827,1.84327903,109810.0,109800.0,0.0973027]
[1748373054133,1.84327903,109810.0,109800.0,0.0974227]
[1748373055630,1.84327903,109810.0,109800.0,0.0255227]
[1748373056131,1.90569656,109810.0,109800.0,0.0255227]
[1748373062238,1.90569656,109810.0,109800.0,0.01012]
[1748373062631,1.90569656,109810.0,109800.0,0.05464699]
[1748373063036,1.90569656,109810.0,109800.0,0.01]
[1748373063533,1.90569656,109810.0,109800.0,0.05453382]
[1748373063740,1.90569656,109810.0,109800.0,0.05465382]
[1748373064642,1.90569656,109810.0,109800.0,0.01012]
[1748373064830,1.90569656,109810.0,109800.0,0.03656384]
[1748373065143,1.90569656,109810.0,109800.0,0.03668384]
[1748373065736,2.15504342,109810.0,109800.0,4e-08]
[1748373065948,0.1820648,109800.0,109790.0,5e-08]
[1748373066136,1.53115852,109800.0,109790.0,5e-08]
[1748373066445,1.60395852,109800.0,109790.0,5e-08]
[1748373066741,1.60395852,109800.0,109790.0,0.00012005]
[1748373067140,1.60395852,109800.0,109790.0,0.00112005]
[1748373068843,1.60495852,109800.0,109790.0,0.00112005]
[1748373069241,1.60595852,109800.0,109790.0,0.00012005]
[1748373070848,1.60595852,109800.0,109790.0,5e-08]
[1748373071436,1.60595852,109800.0,109790.0,0.00012005]
[1748373072548,0.1820733,109790.0,109780.0,0.00182174]
[1748373072740,0.1820899,109780.0,109770.0,0.00091095]
[1748373072940,1.33324092,109780.0,109770.0,0.01367812]
[1748373073240,1.08389406,109780.0,109770.0,0.01379812]
[1748373073442,1.33324092,109780.0,109770.0,0.09709812]
[1748373073643,1.33324092,109780.0,109770.0,0.25209615]
[1748373074146,1.33324092,109780.0,109770.0,0.25408401]
[1748373074950,1.33324092,109780.0,109770.0,0.2560797]
[1748373075152,1.08389406,109780.0,109770.0,0.2560797]
[1748373075455,1.33324092,109780.0,109770.0,0.2560797]
[1748373075649,1.33324092,109780.0,109770.0,0.27595195]
[1748373075953,1.27098489,109780.0,109770.0,0.27595195]
[1748373076452,1.27098489,109780.0,109770.0,0.26320247]
[1748373076653,1.27098489,109780.0,109770.0,0.27594597]
[1748373077939,1.45807572,109780.0,109770.0,0.27594597]
[1748373078938,1.45807572,109780.0,109770.0,0.26320247]
[1748373079142,1.45807572,109780.0,109770.0,0.27594214]
[1748373080751,1.45807572,109780.0,109770.0,0.27592804]
[1748373081547,1.45807572,109780.0,109770.0,0.27592593]
[1748373081749,1.0779899,109780.0,109770.0,0.27592593]
[1748373082056,1.97793156,109780.0,109770.0,0.26318837]
[1748373082255,1.79084073,109780.0,109770.0,0.26318837]
[1748373084253,1.98381273,109780.0,109770.0,0.26318837]
[1748373084448,1.98381273,109780.0,109770.0,0.24333095]
[1748373084449,1.7967219,109780.0,109770.0,0.24333095]
[1748373084652,1.98381273,109780.0,109770.0,0.2631896]
[1748373088956,1.45217156,109780.0,109770.0,0.2631896]
[1748373089157,1.97789156,109780.0,109770.0,0.2631896]
[1748373089355,1.79080073,109780.0,109770.0,0.2631896]
[1748373089655,1.79080073,109780.0,109770.0,0.24333095]
[1748373090157,1.97789156,109780.0,109770.0,0.24333095]
[1748373090358,1.97789156,109780.0,109770.0,0.26320331]
[1748373090660,1.97789156,109780.0,109770.0,0.24333095]
[1748373090954,1.79080073,109780.0,109770.0,0.24333095]
[1748373091759,1.97789156,109780.0,109770.0,0.24333095]
[1748373091955,1.45217156,109780.0,109770.0,0.28310207]
[1748373092161,1.97789156,109780.0,109770.0,0.28310207]
[1748373094055,1.6037099,109780.0,109770.0,0.28310207]
[1748373094262,1.97789156,109780.0,109770.0,0.28310207]
[1748373096357,1.97789156,109780.0,109770.0,0.20530207]
[1748373096563,1.6037099,109780.0,109770.0,0.20530207]
[1748373096753,1.97789156,109780.0,109770.0,0.20530207]
[1748373097462,1.45217156,109780.0,109770.0,0.20530207]
[1748373097663,1.97781156,109780.0,109770.0,0.20530207]
[1748373098060,1.97781156,109780.0,109770.0,0.05480207]
[1748373098949,2.16490239,109780.0,109770.0,0.05480207]
[1748373099161,0.1821288,109760.0,109750.0,0.05586199]
[1748373099361,2.13355046,109760.0,109750.0,0.19458414]
[1748373099658,2.36035046,109760.0,109750.0,0.12865336]
[1748373099861,2.36035046,109760.0,109750.0,0.12853336]
[1748373100056,2.36035046,109760.0,109750.0,0.12865336]
[1748373100554,2.36035046,109760.0,109750.0,0.13265336]
[1748373101456,2.36035046,109760.0,109750.0,0.13665336]
[1748373104363,2.36035046,109760.0,109750.0,0.31879486]
[1748373104364,1.4605288,109760.0,109750.0,0.31879486]
[1748373104564,2.17309963,109760.0,109750.0,0.39369486]
[1748373104868,2.17309963,109760.0,109750.0,0.47069486]
[1748373108569,2.17309963,109760.0,109750.0,0.28855336]
[1748373110978,1.64761963,109760.0,109750.0,0.28855336]
[1748373111163,2.17305963,109760.0,109750.0,0.21155336]
[1748373111469,2.36015046,109760.0,109750.0,0.06085336]
[1748373114268,2.54724129,109760.0,109750.0,0.08726821]
[1748373114467,2.54724129,109760.0,109750.0,0.08053268]
[1748373114671,2.54724129,109760.0,109750.0,0.07445618]
[1748373114967,2.54724129,109760.0,109750.0,0.04079685]
[1748373115161,2.54724129,109760.0,109750.0,0.02101621]
[1748373115364,3.58052129,109760.0,109750.0,0.04091648]
[1748373115566,0.1821428,109750.0,109740.0,0.02653485]